lending/lending_fUSD_20240410
["ID","MTS","AMOUNT","RATE_DAILY","PERIOD"]
[322047759,1712722238341,-161.29447988,0.00020188,2]
[322047761,1712722238350,-312.10476428,0.00020199,2]
[322047763,1712722238359,-161.29447988,0.00020277,2]
[322047765,1712722238368,-3224.91590351,0.00020361,2]
[322047767,1712722238377,-161.29447988,0.00020366,2]
[322047769,1712722238386,-444.45425683,0.00020399,2]
[322047771,1712722238395,-500.0,0.00020399,2]
[322047773,1712722238404,-500.0,0.00020399,2]
[322047776,1712722238413,-500.0,0.00020399,2]
[322047778,1712722238422,-500.0,0.00020399,2]
[322047780,1712722238431,-304.24018408,0.00020399,2]
[322047782,1712722238440,-500.0,0.00020399,2]
[322047784,1712722238449,-17641.0,0.000204,3]
[322047786,1712722238459,-161.29447988,0.00020455,2]
[322047787,1712722238469,-444.45425681,0.00020471,2]
[322047789,1712722238478,-150.0,0.000205,2]
[322047791,1712722238487,-700.0,0.0002052,2]
[322047793,1712722238496,-444.45425681,0.00020542,2]
[322047796,1712722238505,-161.29447988,0.00020544,2]
[322047798,1712722238515,-150.0,0.0002057,2]
[322047800,1712722238524,-444.45425681,0.00020614,2]
[322047802,1712722238533,-161.29447988,0.00020633,2]
[322047804,1712722238542,-444.45425681,0.00020685,2]
[322047806,1712722238551,-17641.0,0.000207,5]
[322047808,1712722238560,-1595.91153832,0.000207,2]
[322047810,1712722238570,-1595.91153832,0.000207,2]
[322047812,1712722238579,-1595.91153832,0.000207,2]
[322047814,1712722238589,-1595.91153832,0.000207,2]
[322047816,1712722238598,-1595.91153832,0.000207,2]
[322047818,1712722238607,-1595.91153832,0.000207,2]
[322047819,1712722238616,-1595.91153832,0.000207,2]
[322047822,1712722238626,-1595.91153832,0.000207,2]
[322047824,1712722238635,-1595.91153832,0.000207,2]
[322047826,1712722238645,-1595.91153832,0.000207,2]
[322047828,1712722238654,-1595.91153832,0.000207,2]
[322047830,1712722238664,-1595.91153832,0.000207,2]
[322047832,1712722238674,-1595.91153832,0.000207,2]
[322047834,1712722238683,-1595.91153832,0.000207,2]
[322047836,1712722238693,-1595.91153832,0.000207,2]
[322047838,1712722238702,-1595.91153832,0.000207,2]
[322047840,1712722238712,-1595.91153832,0.000207,2]
[322047842,1712722238722,-1595.91153832,0.000207,2]
[322047844,1712722238731,-1595.91153832,0.000207,2]
[322047846,1712722238740,-1595.91153832,0.000207,2]
[322047848,1712722238749,-1595.91153832,0.000207,2]
[322047850,1712722238758,-1595.91153832,0.000207,2]
[322047852,1712722238767,-1595.91153832,0.000207,2]
[322047854,1712722238776,-1595.91153832,0.000207,2]
[322047856,1712722238789,-1595.91153832,0.000207,2]
[322047858,1712722238798,-1595.91153832,0.000207,2]
[322047860,1712722238808,-1595.91153832,0.000207,2]
[322047862,1712722238817,-1595.91153832,0.000207,2]
[322047864,1712722238827,-1595.91153832,0.000207,2]
[322047866,1712722238836,-1595.91153832,0.000207,2]
[322047867,1712722238845,-1595.91153832,0.000207,2]
[322047870,1712722238857,-1595.91153832,0.000207,2]
[322047872,1712722238867,-1595.91153832,0.000207,2]
[322047874,1712722238876,-1595.91153832,0.000207,2]
[322047876,1712722238886,-1595.91153832,0.000207,2]
[322047878,1712722238895,-1595.91153832,0.000207,2]
[322047880,1712722238903,-1595.91153832,0.000207,2]
[322047882,1712722238912,-1595.91153832,0.000207,2]
[322047884,1712722238921,-1595.91153832,0.000207,2]
[322047886,1712722238930,-1595.91153832,0.000207,2]
[322047888,1712722238939,-1595.91153832,0.000207,2]
[322047890,1712722238948,-1595.91153832,0.000207,2]
[322047892,1712722238957,-1595.91153832,0.000207,2]
[322047894,1712722238968,-1595.91153832,0.000207,2]
[322047896,1712722238977,-1595.91153832,0.000207,2]
[322047898,1712722238986,-1595.91153832,0.000207,2]
[322047900,1712722238995,-1595.91153832,0.000207,2]
[322047902,1712722239004,-1595.91153832,0.000207,2]
[322047904,1712722239013,-1595.91153832,0.000207,2]
[322047906,1712722239022,-1595.91153832,0.000207,2]
[322047908,1712722239031,-161.29447988,0.00020722,2]
[322047910,1712722239041,-3224.91590351,0.00020729,2]
[322047912,1712722239050,-444.45425681,0.00020757,2]
[322047914,1712722239059,-1234.53898,0.0002079,2]
[322047916,1712722239068,-152.96337253,0.0002079,2]
[322047918,1712722239077,-264.51200162,0.00020798,2]
[322047920,1712722239086,-298.45663972,0.00020799,2]
[322047922,1712722239095,-1053.707671,0.000208,2]
[322047924,1712722239104,-1580.561506,0.000208,2]
[322047925,1712722239113,-2107.415342,0.000208,2]
[322047928,1712722239122,-2634.269177,0.000208,2]
[322047929,1712722239131,-3687.976848,0.000208,2]
[322047931,1712722239140,-161.29447988,0.00020811,2]
[322047933,1712722239149,-444.45425681,0.00020828,2]
[322047936,1712722239159,-200.0,0.00020832,2]
[322047938,1712722239168,-200.0,0.00020832,2]
[322047940,1712722239177,-800.0,0.00020832,2]
[322047941,1712722239186,-500.0,0.00020832,2]
[322047943,1712722239195,-1000.0,0.00020895,2]
[322047945,1712722239204,-1000.0,0.00020895,2]
[322047948,1712722239214,-1000.0,0.00020895,2]
[322047950,1712722239223,-1000.0,0.00020895,2]
[322047952,1712722239231,-1000.0,0.00020895,2]
[322047954,1712722239240,-1000.0,0.00020895,2]
[322047955,1712722239249,-1000.0,0.00020895,2]
[322047957,1712722239259,-1000.0,0.00020895,2]
[322047959,1712722239268,-1000.0,0.00020895,2]
[322047961,1712722239277,-1000.0,0.00020895,2]
[322047963,1712722239286,-1000.0,0.00020895,2]
[322047965,1712722239295,-1000.0,0.00020895,2]
[322047968,1712722239305,-1000.0,0.00020895,2]
[322047970,1712722239314,-1000.0,0.00020895,2]
[322047972,1712722239323,-1000.0,0.00020895,2]
[322047974,1712722239332,-1000.0,0.00020895,2]
[322047976,1712722239341,-1000.0,0.00020895,2]
[322047978,1712722239350,-1000.0,0.00020895,2]
[322047980,1712722239359,-1000.0,0.00020895,2]
[322047981,1712722239368,-1000.0,0.00020895,2]
[322047984,1712722239378,-1000.0,0.00020895,2]
[322047985,1712722239387,-1000.0,0.00020895,2]
[322047987,1712722239396,-1000.0,0.00020895,2]
[322047989,1712722239405,-1000.0,0.00020895,2]
[322047991,1712722239414,-270.3618,0.00020895,2]
[322047993,1712722239425,-500.0,0.00020895,2]
[322047995,1712722239434,-500.0,0.00020895,2]
[322047998,1712722239443,-188.67827421,0.00020899,2]
[322048000,1712722239453,-191.0475,0.000209,2]
[322048001,1712722239462,-1000.0,0.000209,2]
[322048003,1712722239470,-160.0,0.000209,2]
[322048005,1712722239479,-10000.0,0.000209,2]
[322048008,1712722239489,-153.58837516,0.000209,2]
[322048010,1712722239498,-444.45425681,0.000209,2]
[322048012,1712722239507,-193.30310907,0.000209,2]
[322048013,1712722239516,-500.0,0.000209,2]
[322048015,1712722239526,-161.29447988,0.000209,2]
[322048018,1712722239535,-1860.83537477,0.000209,2]
[322048020,1712722239545,-271.21277041,0.000209,2]
[322048021,1712722239554,-168.84337744,0.000209,2]
[322048022,1712722239563,-573.534,0.0002095,2]
[322048023,1712722239573,-4496.772,0.0002095,2]
[322048024,1712722239582,-5788.278,0.0002095,2]
[322048025,1712722239591,-305.808,0.0002095,2]
[322048026,1712722239600,-2463.0,0.0002095,2]
[322048027,1712722239609,-1076.589,0.0002095,2]
[322048028,1712722239619,-169.11,0.00020951,2]
[322048029,1712722239628,-153.59,0.00020974,2]
[322048030,1712722239637,-166.97,0.00020974,2]
[322048031,1712722239647,-51990.148181,0.0002099,2]
[322048033,1712722239656,-9952.1503782,0.0002099,2]
[322048035,1712722239665,-1801.123033,0.00020995,3]
[322048037,1712722239673,-3768.246066,0.00020996,3]
[322048039,1712722239682,-5024.74494919,0.00020996,2]
[322048041,1712722239691,-3768.246066,0.00020997,3]
[322048043,1712722239700,-3768.246066,0.00020997,2]
[322048045,1712722239711,-11474.15522636,0.00020999,2]
[322048047,1712722239719,-863.25967855,0.00020999,2]
[322048049,1712722239728,-2150.03,0.00020999,2]
[322048051,1712722239737,-2150.03,0.00020999,2]
[322048053,1712722239747,-2150.03,0.00020999,2]
[322048055,1712722239757,-2150.03,0.00020999,2]
[322048057,1712722239767,-2150.03,0.00020999,2]
[322048059,1712722239776,-2150.03,0.00020999,2]
[322048061,1712722239789,-2150.03,0.00020999,2]
[322048063,1712722239798,-2150.03,0.00020999,2]
[322048065,1712722239807,-2150.03,0.00020999,2]
[322048067,1712722239817,-2150.03,0.00020999,2]
[322048069,1712722239828,-2150.03,0.00020999,2]
[322048071,1712722239837,-2150.03,0.00020999,2]
[322048073,1712722239847,-2150.03,0.00020999,2]
[322048075,1712722239856,-2150.03,0.00020999,2]
[322048077,1712722239867,-2150.03,0.00020999,2]
[322048079,1712722239876,-2150.03,0.00020999,2]
[322048081,1712722239885,-2150.03,0.00020999,2]
[322048083,1712722239894,-2150.03,0.00020999,2]
[322048085,1712722239903,-2150.03,0.00020999,2]
[322048087,1712722239912,-2150.03,0.00020999,2]
[322048089,1712722239921,-2150.03,0.00020999,2]
[322048091,1712722239930,-2150.03,0.00020999,2]
[322048093,1712722239939,-2150.03,0.00020999,2]
[322048095,1712722239948,-2150.23010494,0.00020999,2]
[322048097,1712722239958,-160216.74168435,0.00021,2]
[322048099,1712722239968,-3646.012,0.00021,2]
[322048101,1712722239978,-3086880.45986561,0.00021,2]
[322048158,1712722240497,-1594.30753689,0.00021,2]
[322048189,1712722240783,-342.9602104,0.00020895,2]
[322048192,1712722240795,-157.0397896,0.00020895,2]
[322048194,1712722240804,-362.03454566,0.00020895,2]
[322048204,1712722240890,-137.96545434,0.00020895,2]
[322048206,1712722240899,-396.29778149,0.00020895,2]
[322048210,1712722240933,-103.70221851,0.00020895,2]
[322048212,1712722240942,-500.0,0.00020895,2]
[322048214,1712722240951,-2746.38657079,0.00021,2]
[322048424,1712722243065,-150.0,0.00020738,2]
[322048427,1712722243074,-506.3047,0.00020895,2]
[322048429,1712722243083,-797.0069838,0.000209,2]
[322048431,1712722243092,-3408.7383162,0.00021,2]
[322048433,1712722243104,-279.816,0.00021,2]
[322048436,1712722243123,-3086.08622116,0.00021,2]
[322048466,1712722243396,-6398.15183386,0.00021,2]
[322048567,1712722245946,-675.0,0.00020547,2]
[322048568,1712722245955,-431.62983927,0.00020999,2]
[322048569,1712722245966,-4252.26144003,0.00021,2]
[322048570,1712722246109,-270.42728545,0.00021,2]
[322048571,1712722246163,-263.32652818,0.00021,2]
[322048589,1712722255445,155.37993808,0.00018899,2]
[322048590,1712722349918,508.19,0.00018649,2]
[322048591,1712722640111,3996.41234729,0.0003,30]
[322048592,1712722826058,482.78,0.00017733,2]
[322048593,1712723045686,-3000.0,0.00018059,2]
[322048594,1712723046769,-289.66773672,0.00018059,2]
[322048595,1712723046790,-2710.33226328,0.00018165,2]
[322048596,1712723047251,-579.33547344,0.00018165,2]
[322048597,1712723047273,-407.97107678,0.000182,2]
[322048598,1712723047296,-188.0947876,0.00018397,2]
[322048599,1712723047317,-150.0,0.00018452,2]
[322048600,1712723047573,-1674.59866218,0.00018453,2]
[322048601,1712723047681,-537.14652286,0.00018453,2]
[322048602,1712723047703,-2462.85347714,0.00018453,2]
[322048603,1712723051064,-826.81425958,0.00018453,2]
[322048604,1712723051172,-2173.18574042,0.00018717,2]
[322048605,1712723051434,-1116.4819963,0.00018717,2]
[322048606,1712723051455,-155.0,0.00018898,2]
[322048607,1712723051475,-1728.5180037,0.00019146,2]
[322048608,1712723052808,-1561.14973302,0.00019146,2]
[322048609,1712723052829,-1438.85026698,0.00019225,2]
[322048610,1712723053207,-1850.81746974,0.00019225,2]
[322048611,1712723100654,1149.18253026,0.00018926,2]
[322048612,1712723100889,2140.48520646,0.00018926,2]
[322048613,1712723130140,-2052.91234671,0.00019317,2]
[322048614,1712723229219,859.51479354,0.00019042,2]
[322048615,1712723229243,2430.15294318,0.00019042,2]
[322048616,1712723229450,-150.0,0.00019316,2]
[322048617,1712723229472,-150.0,0.00019316,2]
[322048618,1712723229492,-14289.67778631,0.00019317,2]
[322048619,1712723229512,-1401.1010691,0.00019455,2]
[322048620,1712723229533,-160.0,0.00019475,2]
[322048621,1712723229553,-1184.18,0.00019528,2]
[322048622,1712723229573,-269.54,0.00019616,2]
[322048623,1712723229592,-169.12,0.00019633,2]
[322048624,1712723229611,-385.91921703,0.00019676,2]
[322048625,1712723245600,569.84705682,0.000192,2]
[322048626,1712723245621,1075.08645645,0.000192,2]
[322048631,1712723432021,-3289.66773672,0.0001943,2]
[322048632,1712723432031,-1167.85669664,0.0001953,2]
[322048633,1712723432040,-158.5467267,0.00019576,2]
[322048634,1712723432049,-210.46420299,0.00019651,2]
[322048635,1712723432129,-253.89533442,0.00019651,2]
[322048636,1712723432184,-2825.30819931,0.00019651,2]
[322048637,1712723432194,-150.0,0.00019743,2]
[322048638,1712723432204,-150.0,0.00019743,2]
[322048639,1712723432213,-1461.54878199,0.00019744,2]
[322048664,1712723438012,-6371.25121801,0.00019744,2]
[322048666,1712723438022,-191.46,0.00019759,2]
[322048668,1712723438031,-753.13865666,0.00019947,2]
[322048670,1712723438040,-233.715777,0.00019948,2]
[322048672,1712723438049,-325.36382504,0.00019948,2]
[322048674,1712723438058,-3289.66773672,0.00019978,2]
[322048676,1712723438067,-482.78,0.00019997,2]
[322048678,1712723438075,-872.0,0.00020083,2]
[322048680,1712723438084,-153.59,0.00020192,2]
[322048682,1712723438094,-166.97,0.00020192,2]
[322048684,1712723438103,-3289.66773672,0.00020221,2]
[322048686,1712723438113,-3289.66773672,0.00020345,2]
[322048688,1712723438126,-150.0,0.000205,2]
[322048689,1712723438137,-688.0,0.00020547,2]
[322048691,1712723438146,-499.99,0.00020594,2]
[322048693,1712723438155,-1000.0,0.000206,2]
[322048694,1712723438166,-1000.0,0.000206,2]
[322048695,1712723438175,-1000.0,0.000206,2]
[322048697,1712723438184,-1000.0,0.000206,2]
[322048698,1712723438193,-3289.66773672,0.00020618,2]
[322048700,1712723438204,-514.0,0.000207,2]
[322048702,1712723438214,-541.0,0.000207,2]
[322048704,1712723438224,-1009.12842266,0.00020781,2]
[322048706,1712723438233,-152.96337253,0.0002079,2]
[322048708,1712723438243,-342.30995,0.0002079,2]
[322048709,1712723438253,-1028.78248,0.0002079,2]
[322048710,1712723438262,-316.112301,0.000208,2]
[322048711,1712723438271,-474.168452,0.000208,2]
[322048712,1712723438280,-74.60459822,0.000208,2]
[322048713,1712723438292,-557.62000378,0.000208,2]
[322048714,1712723438302,-790.280753,0.000208,2]
[322048715,1712723438312,-991.13209131,0.000208,2]
[322048716,1712723438324,-115.26096369,0.000208,2]
[322048717,1712723438333,-1000.0,0.000208,2]
[322048718,1712723438343,-1034.0,0.000208,2]
[322048719,1712723438353,-161.29447988,0.000208,2]
[322048720,1712723438362,-222.22712844,0.000208,2]
[322048721,1712723438371,-381.94389383,0.000208,2]
[322048722,1712723438382,-381.94389377,0.00020811,2]
[322048723,1712723438390,-3736.138,0.00020813,2]
[322048724,1712723438399,-222.2271284,0.00020814,2]
[322048725,1712723438408,-381.94389377,0.00020822,2]
[322048726,1712723438417,-222.2271284,0.00020829,2]
[322048727,1712723438427,-200.0,0.00020832,2]
[322048728,1712723438437,-500.0,0.00020832,2]
[322048729,1712723438448,-161.29447988,0.00020833,2]
[322048730,1712723438457,-381.94389377,0.00020833,2]
[322048731,1712723438467,-222.2271284,0.00020843,2]
[322048732,1712723438477,-381.94389377,0.00020844,2]
[322048733,1712723438487,-381.94389377,0.00020856,2]
[322048734,1712723438497,-222.2271284,0.00020857,2]
[322048735,1712723438509,-161.29447988,0.00020867,2]
[322048737,1712723438518,-381.94389377,0.00020867,2]
[322048739,1712723438527,-222.2271284,0.00020871,2]
[322048741,1712723438536,-381.94389377,0.00020878,2]
[322048743,1712723438545,-222.2271284,0.00020886,2]
[322048745,1712723438554,-381.94389377,0.00020889,2]
[322048747,1712723438562,-378.44,0.0002089,3]
[322048749,1712723438572,-1595.91153832,0.0002089,2]
[322048751,1712723438581,-1595.91153832,0.0002089,2]
[322048753,1712723438591,-1595.91153832,0.0002089,2]
[322048755,1712723438601,-1595.91153832,0.0002089,2]
[322048757,1712723438611,-1595.91153832,0.0002089,2]
[322048759,1712723438620,-1595.91153832,0.0002089,2]
[322048760,1712723438628,-1595.91153832,0.0002089,2]
[322048763,1712723438638,-1595.91153832,0.0002089,2]
[322048765,1712723438647,-1595.91153832,0.0002089,2]
[322048766,1712723438658,-1595.91153832,0.0002089,2]
[322048769,1712723438667,-1595.91153832,0.0002089,2]
[322048771,1712723438677,-1595.91153832,0.0002089,2]
[322048772,1712723438688,-1595.91153832,0.0002089,2]
[322048775,1712723438698,-1595.91153832,0.0002089,2]
[322048777,1712723438708,-1595.91153832,0.0002089,2]
[322048779,1712723438717,-1595.91153832,0.0002089,2]
[322048780,1712723438728,-1595.91153832,0.0002089,2]
[322048782,1712723438737,-1595.91153832,0.0002089,2]
[322048784,1712723438746,-1595.91153832,0.0002089,2]
[322048786,1712723438755,-1595.91153832,0.0002089,2]
[322048788,1712723438764,-1595.91153832,0.0002089,2]
[322048790,1712723438773,-1595.91153832,0.0002089,2]
[322048792,1712723438782,-1595.91153832,0.0002089,2]
[322048794,1712723438791,-1595.91153832,0.0002089,2]
[322048796,1712723438801,-1595.91153832,0.0002089,2]
[322048799,1712723438811,-1595.91153832,0.0002089,2]
[322048800,1712723438820,-1595.91153832,0.0002089,2]
[322048802,1712723438829,-1595.91153832,0.0002089,2]
[322048804,1712723438839,-795.54647104,0.0002089,2]
[322048829,1712723439060,-800.36506728,0.0002089,2]
[322048831,1712723439077,-967.6361792,0.0002089,2]
[322048929,1712723440028,-628.27535912,0.0002089,2]
[322048931,1712723440037,-408.45975341,0.0002089,2]
[322048937,1712723440085,-691.793,0.0002089,2]
[322048940,1712723440097,-495.65878491,0.0002089,2]
[322048942,1712723440106,-218.73088597,0.0002089,2]
[322048946,1712723440121,-514.75918401,0.0002089,2]
[322048949,1712723440134,-383.44259712,0.0002089,2]
[322048952,1712723440146,-357.45559008,0.0002089,2]
[322048956,1712723440158,-121.52328114,0.0002089,2]
[322048959,1712723440168,-191.95171886,0.0002089,2]
[322048998,1712723440521,-1403.95981946,0.0002089,2]
[322049000,1712723440530,-1595.91153832,0.0002089,2]
[322049002,1712723440539,-1595.91153832,0.0002089,2]
[322049004,1712723440548,-1595.91153832,0.0002089,2]
[322049006,1712723440557,-1595.91153832,0.0002089,2]
[322049008,1712723440566,-1595.91153832,0.0002089,2]
[322049011,1712723440576,-1595.91153832,0.0002089,2]
[322049012,1712723440585,-1595.91153832,0.0002089,2]
[322049014,1712723440595,-1595.91153832,0.0002089,2]
[322049016,1712723440605,-1595.91153832,0.0002089,2]
[322049019,1712723440615,-1595.91153832,0.0002089,2]
[322049021,1712723440624,-1595.91153832,0.0002089,2]
[322049023,1712723440634,-1595.91153832,0.0002089,2]
[322049025,1712723440644,-1595.91153832,0.0002089,2]
[322049026,1712723440653,-1595.91153832,0.0002089,2]
[322049029,1712723440663,-1595.91153832,0.0002089,2]
[322049030,1712723440673,-1595.91153832,0.0002089,2]
[322049033,1712723440682,-1595.91153832,0.0002089,2]
[322049035,1712723440692,-160.0,0.00020891,2]
[322049037,1712723440702,-1000.0,0.00020895,2]
[322049038,1712723440711,-1000.0,0.00020895,2]
[322049041,1712723440720,-1000.0,0.00020895,2]
[322049043,1712723440730,-1000.0,0.00020895,2]
[322049045,1712723440739,-1000.0,0.00020895,2]
[322049047,1712723440747,-1000.0,0.00020895,2]
[322049049,1712723440757,-217.13495678,0.00020895,2]
[322049088,1712723441116,-782.86504322,0.00020895,2]
[322049090,1712723441130,-1000.0,0.00020895,2]
[322049092,1712723441139,-504.98208074,0.00020895,2]
[322049094,1712723441150,-469.79361425,0.00020895,2]
[322049295,1712723443106,-25.22430501,0.00020895,2]
[322049297,1712723443118,-1000.0,0.00020895,2]
[322049299,1712723443127,-1000.0,0.00020895,2]
[322049301,1712723443138,-1000.0,0.00020895,2]
[322049303,1712723443147,-1000.0,0.00020895,2]
[322049305,1712723443157,-1000.0,0.00020895,2]
[322049307,1712723443166,-1000.0,0.00020895,2]
[322049309,1712723443175,-1000.0,0.00020895,2]
[322049311,1712723443184,-1000.0,0.00020895,2]
[322049313,1712723443193,-1000.0,0.00020895,2]
[322049315,1712723443202,-409.18531345,0.00020895,2]
[322049344,1712723443464,-296.87492273,0.00020895,2]
[322049352,1712723443533,-293.93976382,0.00020895,2]
[322049354,1712723443543,-1000.0,0.00020895,2]
[322049356,1712723443552,-1000.0,0.00020895,2]
[322049358,1712723443561,-1000.0,0.00020895,2]
[322049360,1712723443570,-1000.0,0.00020895,2]
[322049362,1712723443579,-1000.0,0.00020895,2]
[322049364,1712723443588,-167.44540617,0.00020895,2]
[322049424,1712723446242,-102.91639383,0.00020895,2]
[322049425,1712723446252,-500.0,0.00020895,2]
[322049426,1712723446262,-500.0,0.00020895,2]
[322049427,1712723446273,-188.67827421,0.00020898,2]
[322049428,1712723446283,-298.45663972,0.00020898,2]
[322049429,1712723446294,-264.51200162,0.00020898,2]
[322049430,1712723446303,-155.10157982,0.00020898,2]
[322049431,1712723446312,-644.41312337,0.00020898,2]
[322049432,1712723446322,-487.71621001,0.00020898,2]
[322049433,1712723446331,-121.26034019,0.00020898,2]
[322049434,1712723446347,-34.00534378,0.00020898,2]
[322049435,1712723446356,-1046.66847961,0.00020898,2]
[322049436,1712723446365,-239.06904616,0.00020899,2]
[322049437,1712723446374,-191.0475,0.00020899,2]
[322049438,1712723446383,-1841.4532733,0.00020899,2]
[322049439,1712723446393,-311.58224268,0.00020899,2]
[322049440,1712723446402,-160.0,0.000209,2]
[322049441,1712723446412,-23734.95198437,0.000209,3]
[322049442,1712723446427,-253.07469138,0.000209,3]
[322049443,1712723446446,-447.79927082,0.000209,3]
[322049463,1712723476204,1250.0,0.00019,3]
[322049464,1712723481345,674.91354355,0.00018911,2]
[322049465,1712723481365,2512.22392833,0.00018911,2]
[322049466,1712723495745,482.16,0.00018414,2]
[322049468,1712723619923,-3000.0,0.00019226,2]
[322049469,1712723620498,-187.13747188,0.00019226,2]
[322049470,1712723623887,2812.86252812,0.00019225,2]
[322049471,1712723623910,3000.0,0.00019225,2]
[322049472,1712723623932,3000.0,0.00019225,2]
[322049473,1712723623955,194.64349378,0.00019225,2]
[322049475,1712723671232,2805.35650622,0.00019529,2]
[322049476,1712723671255,3000.0,0.00019529,2]
[322049477,1712723671277,3000.0,0.00019529,2]
[322049478,1712723671297,3000.0,0.00019529,2]
[322049479,1712723671534,3000.0,0.00019529,2]
[322049480,1712723726351,-3000.0,0.00019498,2]
[322049481,1712723727218,-187.13747188,0.00019498,2]
[322049482,1712723727242,-2812.86252812,0.00019529,2]
[322049483,1712723728161,-3000.0,0.00019529,2]
[322049484,1712723728934,-1517.524087,0.000194,2]
[322049485,1712723728954,-1482.475913,0.00019529,2]
[322049486,1712723729696,-3000.0,0.00019529,2]
[322049487,1712723754268,-3000.0,0.00019529,2]
[322049488,1712723754694,-3000.0,0.00019529,2]
[322049489,1712723754986,-3000.0,0.00019529,2]
[322049490,1712723755416,-1083.90014728,0.00019529,2]
[322049491,1712723755438,-864.21551973,0.00019529,2]
[322049492,1712723771572,864.21551973,0.00019529,2]
[322049493,1712723789575,176.0687743,0.00019529,2]
[322049494,1712723821341,11.60003896,0.00019529,2]
[322049495,1712723821362,3000.0,0.00019529,2]
[322049496,1712723821382,3000.0,0.00019529,2]
[322049497,1712723821403,3000.0,0.00019529,2]
[322049498,1712723821427,1582.08039653,0.00019529,2]
[322049499,1712723825312,417.91960347,0.00019529,2]
[322049500,1712723825334,82.08039653,0.00019529,2]
[322049502,1712723899485,163.85251627,0.00029562,30]
[322049503,1712723900261,163.85251627,0.00029699,30]
[322049504,1712723900314,163.85251627,0.00029808,30]
[322049505,1712723900358,163.85251627,0.00029945,30]
[322049506,1712723964002,522.0,0.00017935,2]
[322049507,1712724006313,-3000.0,0.0001953,2]
[322049508,1712724007050,-3000.0,0.0001953,2]
[322049509,1712724007859,-357.31,0.0001953,2]
[322049510,1712724007883,-2642.69,0.00019794,2]
[322049511,1712724008545,-544.4474718,0.00019794,2]
[322049512,1712724009286,2455.5525282,0.00017935,2]
[322049513,1712724009318,3000.0,0.00017935,2]
[322049514,1712724009359,6544.4474718,0.00017935,2]
[322049515,1712724049286,2000.0,0.00017935,2]
[322049517,1712724216151,1000.0,0.00019787,2]
[322049518,1712724216172,2187.1374719,0.00019787,2]
[322049519,1712724216531,-160.0,0.0001983,2]
[322049520,1712724216553,-1840.0,0.00019865,2]
[322049521,1712724218329,-2000.0,0.00019865,2]
[322049522,1712724262432,812.8625281,0.00019727,2]
[322049523,1712724262453,591.3074719,0.00019727,2]
[322049524,1712724299162,200.0,0.00019727,2]
[322049526,1712724347166,-1545.062,0.00019809,2]
[322049527,1712724347186,-613.7398197,0.00019865,2]
[322049528,1712724347208,-169.0,0.00019886,2]
[322049529,1712724347228,-152.27,0.00019952,2]
[322049530,1712724347249,-152.27,0.00020101,2]
[322049531,1712724347268,-72.78041497,0.00020192,2]
[322049532,1712724434280,-250.0,0.000198,2]
[322049533,1712724434300,-910.74164469,0.0002019,2]
[322049534,1712724446842,509.87,0.00017882,2]
[322049535,1712724454160,-509.87,0.00020146,2]
[322049536,1712724454180,-10667.11835531,0.0002019,2]
[322049537,1712724454199,-3187.1374719,0.00020191,2]
[322049538,1712724454219,-77.21958503,0.00020192,2]
[322049539,1712724454239,-326.67757,0.00020192,2]
[322049540,1712724454262,-904.0,0.0002022,2]
[322049541,1712724454283,-499.99,0.0002022,2]
[322049542,1712724454304,-152.27,0.00020249,2]
[322049543,1712724454324,-3187.1374719,0.00020292,2]
[322049544,1712724454345,-152.27,0.00020398,2]
[322049545,1712724454364,-150.0,0.00020456,2]
[322049546,1712724454385,-150.0,0.000205,2]
[322049547,1712724454404,-152.27,0.00020546,2]
[322049548,1712724454423,-690.0,0.00020547,2]
[322049549,1712724454444,-5977.27826535,0.000206,2]
[322049550,1712724454463,-342.30996,0.0002069,2]
[322049551,1712724454482,-342.30995,0.0002069,2]
[322049552,1712724454501,-152.27,0.00020695,2]
[322049553,1712724454519,-342.30995,0.000207,2]
[322049554,1712724454538,-171.24106451,0.0002079,2]